Cogmind - Beta 9.6 @@@ ROGUE MODE // 2020.06.16 @ 21:23:33 Player: Ari Result: Destroyed by H-55 Commando with Assault Rifle Performance ------------- Evolutions (3) 1500 Regions Visited (10) 2000 Robots Destroyed (84) 420 Value Destroyed (2102) 2102 Prototype IDs (28) 560 Alien Tech Used (0) 0 Bonus (255) 255 TOTAL SCORE: 6837 Bonus ------- Aligned with FarCom 300 Friendly Fire -45 Cogmind --------- Core Integrity 0/700 Matter 270/300 Energy 9/100 System Corruption 0% Temperature Cool (0) Movement Flying (29) Location -7/Lower Caves Parts ------- > --- POWER (2) -------- (None) > --- PROPULSION (3) --- Improved VTOL Module Improved VTOL Module Improved VTOL Module > --- UTILITY (6) ------ Medium Storage Unit Advanced Signal Interpreter Improved Light Armor Plating Hacking Suite > --- WEAPON (2) ------- Katana > --- INVENTORY (8) ---- Improved VTOL Module Guided Plasma Cannon High-powered Shotgun Peak State ------------ > --- POWER ------------ Light Nuclear Core > --- PROPULSION ------- Improved VTOL Module Improved VTOL Module Cooled VTOL Module > --- UTILITY ---------- Medium Storage Unit Advanced Signal Interpreter Hacking Suite System Shield > --- WEAPON ----------- Guided Plasma Cannon Enhanced Autogun > --- INVENTORY -------- Light Nuclear Core Improved VTOL Module Improved VTOL Module Improved VTOL Module Improved VTOL Module High-powered Shotgun Katana [Rating: 40] Favorites ----------- Power Light Nuclear Core Engine Ion Engine Power Core Light Nuclear Core Propulsion Aluminum Leg Leg Aluminum Leg Flight Unit Improved VTOL Module Utility Hacking Suite Device ECM Suite Storage Medium Storage Unit Processor Advanced Signal Interpreter Hackware Hacking Suite Protection Hardened Light Armor Plating Weapon Shotgun Energy Gun Improved Medium Laser Energy Cannon Guided Plasma Cannon Ballistic Gun Shotgun Launcher Grenade Launcher Slashing Weapon Katana Build | -11 -10 -10 -9 -9 -9 -8 -8 -7 -7 -7 ------- Run | Scr Mat Min Mat Min Exi Min Mat Fac Low Low Slots Evolved 6 | . . . 2 . . . 2 2 . . Power 1 | . . . . . . . 1 . . . Propulsion 1 | . . . 1 . . . . . . . Utility 4 | . . . 1 . . . 1 2 . . Weapon . | . . . . . . . . . . . Parts Attached 94 | 6 14 4 34 3 . 8 16 1 5 3 Power 12 | 1 1 . 4 . . 2 3 . 1 . Engine 5 | 1 . . 3 . . 1 . . . . Core 7 | . 1 . 1 . . 1 3 . 1 . Reactor . | . . . . . . . . . . . Propulsion 27 | 2 2 2 11 1 . 1 4 1 2 1 Treads . | . . . . . . . . . . . Leg 20 | 2 2 2 11 1 . 1 1 . . . Wheel . | . . . . . . . . . . . Hover . | . . . . . . . . . . . Flight 7 | . . . . . . . 3 1 2 1 Utility 16 | 1 3 . 7 . . . 4 . . 1 Device 1 | . 1 . . . . . . . . . Storage 9 | 1 1 . 6 . . . 1 . . . Processor 1 | . . . . . . . 1 . . . Hackware 3 | . 1 . . . . . 2 . . . Protection 2 | . . . 1 . . . . . . 1 Artifact . | . . . . . . . . . . . Weapon 39 | 2 8 2 12 2 . 5 5 . 2 1 Energy Gun 13 | . 4 . 5 1 . 2 1 . . . Energy Cannon 3 | . . . . . . 1 1 . 1 . Ballistic Gun 14 | 2 3 1 6 . . . 1 . 1 . Ballistic Cannon . | . . . . . . . . . . . Launcher 7 | . 1 1 1 1 . 2 1 . . . Special Weapon . | . . . . . . . . . . . Impact Weapon . | . . . . . . . . . . . Slashing Weapon 2 | . . . . . . . 1 . . 1 Piercing Weapon . | . . . . . . . . . . . Special Melee Weapon . | . . . . . . . . . . . Unidentified Prototypes 5 | . . . 2 . . . 2 1 . . Parts Lost 33 | . 2 3 14 1 . 2 4 . 7 . Power 7 | . 1 . 2 . . 1 1 . 2 . Propulsion 12 | . . 1 5 1 . 1 1 . 3 . Utility 2 | . . . . . . . 1 . 1 . Weapon 12 | . 1 2 7 . . . 1 . 1 . Highest Loss Streak 6 | . 1 3 3 1 . 1 2 . 6 . Average Slot Usage (%) 93 | . 93 100 96 99 100 97 90 69 64 56 Engine 4 | . 11 . 1 11 11 2 2 . . . Core 7 | . 2 14 8 . . 8 12 7 5 . Leg 26 | . 28 28 32 32 33 30 17 . . . Flight 2 | . . . . . . . 6 23 21 23 Device 1 | . 6 . . . . . . . . . Storage 15 | . 14 14 16 22 22 22 15 7 7 7 Hackware 10 | . 2 14 11 11 11 11 17 15 13 7 Protection 1 | . . . 4 . . . . . . 4 Energy Gun 8 | . 10 6 8 10 11 7 6 . . . Ballistic Gun 11 | . 17 14 11 11 11 11 6 . 5 . Launcher 1 | . . 7 . . . 3 . . . . Naked Turns . | . . . . . . . . . . . Heaviest Build 52 | 12 19 18 43 43 43 48 52 15 26 13 Greatest Support 45 | 20 20 20 45 45 45 45 43 18 17 18 Greatest Overweight (x) 8 | . . . 1 1 . 1 8 . 1 . Average Overweight (x) . | . . . . . . . . . . . Largest Inventory Capacity 16 | 6 8 8 16 16 16 16 16 8 8 8 Average Capacity 10 | 5 7 8 10 16 16 16 13 8 8 8 Most Carried 16 | 6 8 8 16 16 16 16 16 8 8 5 Average Carried 9 | 3 7 7 9 15 15 15 13 7 7 3 Final Capacity 16 | 6 8 8 16 16 16 16 8 8 8 8 Final Carried 16 | 6 8 8 16 16 16 15 7 8 6 3 Class Distribution -------------------- 51% | Mutant 29% | Scavenger-Mutant 9% | Hacker-Mutant 8% | Hacker-Sprinter Dominant Class ---------------- Mutant | -10/Materials Scavenger-Mutant | -10/Mines Mutant | -9/Materials Mutant | -9/Mines Mutant | -9/Exiles Mutant | -8/Mines Hacker-Mutant | -8/Materials Hacker-Sprinter | -7/Factory Hacker-Sprinter | -7/Lower Caves Sprinter | -7/Lower Caves Resources | -11 -10 -10 -9 -9 -9 -8 -8 -7 -7 -7 ----------- Run | Scr Mat Min Mat Min Exi Min Mat Fac Low Low Matter Collected 1892 | 280 359 109 602 77 . 25 375 10 55 . Remotely . | . . . . . . . . . . . Salvage Created 2411 | 60 496 178 987 207 . 21 312 . 150 . Parts 172 | 1 40 8 73 15 . 10 21 . 4 . Haulers Intercepted 5 | . 1 . 3 . . . 1 . . . Recyclers Shooed 4 | . 1 . 1 . . . 2 . . . Parts Field Recycled . | . . . . . . . . . . . Retrieved Matter . | . . . . . . . . . . . Parts Self-Destructed 5 | . . . . . . . . . 5 . Prevented . | . . . . . . . . . . . Kills | -11 -10 -10 -9 -9 -9 -8 -8 -7 -7 -7 ------- Run | Scr Mat Min Mat Min Exi Min Mat Fac Low Low Combat Hostiles Destroyed 69 | . 15 5 26 4 . 8 7 . 4 . Melee 1 | . . . . . . . 1 . . . Guns 42 | . 12 3 21 2 . 1 3 . . . Cannons 4 | . . . . . . . . . 4 . AOE 22 | . 3 2 5 2 . 7 3 . . . Classes Destroyed 10 | 1 4 . 2 2 . . 1 . . . Worker 2 | . . . . 2 . . . . . . Builder 2 | . . . 2 . . . . . . . Hauler 5 | . 1 . 3 . . . 1 . . . Recycler 2 | 1 1 . . . . . . . . . Operator 4 | . 2 . 2 . . . . . . . Swarmer 29 | . 6 . 10 . . 8 2 . 3 . Grunt 29 | . 9 5 11 3 . . 1 . . . Duelist 1 | . . . . 1 . . . . . . Sentry 8 | . . . 5 . . . 2 . 1 . Hunter 2 | . . . . . . . 2 . . . Best Kill Streak 5 | 1 4 2 5 3 . 4 3 . 4 . Combat Bots Only 4 | . 4 2 4 2 . 4 3 . 4 . Max Kills in Single Turn 4 | 1 2 2 3 2 . 4 1 . 1 . Gunslinging . | . . . . . . . . . . . Exploded 4 | . 2 2 3 2 . 4 1 . . . Melee 1 | . . . . . . . 1 . . . Uniques/NPCs Destroyed . | . . . . . . . . . . . Combat | -11 -10 -10 -9 -9 -9 -8 -8 -7 -7 -7 -------- Run | Scr Mat Min Mat Min Exi Min Mat Fac Low Low Damage Taken 5170 | . 609 449 1733 129 . 103 655 60 1317 115 Core 1411 | . 110 67 308 31 . 7 186 43 637 22 Absorbed by Shields . | . . . . . . . . . . . Core Remaining (%) 52 | 100 . 29 . . . 13 66 . . . Volleys Fired 225 | 5 63 18 92 8 . 5 26 . 8 . Largest 2 | 2 2 2 2 2 . 2 2 . 1 . Hottest 120 | 40 85 85 80 79 . 62 120 . 120 . Shots Fired 420 | 10 124 36 176 16 . 10 40 . 8 . Gun 382 | 10 122 33 169 14 . 5 29 . . . Cannon 14 | . . . . . . . 6 . 8 . Launcher 24 | . 2 3 7 2 . 5 5 . . . Special . | . . . . . . . . . . . Kinetic 232 | 10 82 19 94 8 . 5 14 . . . Thermal 149 | . 40 14 75 6 . . 6 . 8 . Explosive 24 | . 2 3 7 2 . 5 5 . . . Electromagnetic 15 | . . . . . . . 15 . . . Robot Hit Streak 16 | 6 15 10 16 4 . 2 8 . 9 . Robot Miss Streak 7 | 1 5 7 4 1 . 7 3 . . . Penetration Max . | . . . . . . . . . . . Secondary Targets . | . . . . . . . . . . . Shots Hit Robots 295 | 8 92 29 115 9 . 2 32 . 8 . Core Hits 171 | 2 54 19 63 8 . 8 13 . 4 . Critical Hits 4 | . 1 . 3 . . . . . . . Critical Kills 2 | . 1 . 1 . . . . . . . Critical Parts Destroyed 2 | . . . 2 . . . . . . . Melee Attacks 20 | . . . . . . . 11 9 . . Impact . | . . . . . . . . . . . Slashing 20 | . . . . . . . 11 9 . . Piercing . | . . . . . . . . . . . Sneak Attacks . | . . . . . . . . . . . Combat Hostiles . | . . . . . . . . . . . Follow-up Attacks . | . . . . . . . . . . . Damage Inflicted 5615 | 90 938 383 1788 332 . 507 1302 . 275 . Guns 3023 | 90 775 269 1400 154 . 34 301 . . . Cannons 484 | . . . . . . . 209 . 275 . Explosions 1861 | . 163 114 385 178 . 473 548 . . . Melee 239 | . . . . . . . 239 . . . Ramming 8 | . . . 3 . . . 5 . . . Kinetic 1639 | 90 458 123 734 65 . 34 135 . . . Thermal 1702 | . 317 146 666 89 . . 209 . 275 . Explosive 1861 | . 163 114 385 178 . 473 548 . . . Electromagnetic 166 | . . . . . . . 166 . . . Impact . | . . . . . . . . . . . Slashing 239 | . . . . . . . 239 . . . Piercing . | . . . . . . . . . . . Highest Corruption 1 | . 1 1 . . . . . . . . Average Corruption 1 | . 1 1 . . . . . . . . Corruption Purged . | . . . . . . . . . . . Effects 7 | . 5 2 . . . . . . . . Message Errors 4 | . 3 1 . . . . . . . . Energy Discharges 2 | . 1 1 . . . . . . . . Data Loss (minor) 1 | . 1 . . . . . . . . . Overload Shots . | . . . . . . . . . . . Overflow Damage 212 | . . . 2 . . 8 178 . 24 . Projectiles 83 | . . . . . . . 59 . 24 . Explosions 122 | . . . 2 . . 8 112 . . . Melee 7 | . . . . . . . 7 . . . Knockbacks . | . . . . . . . . . . . Impact . | . . . . . . . . . . . Kinetic . | . . . . . . . . . . . Secondary . | . . . . . . . . . . . Self-Inflicted Damage 212 | . 9 73 49 . . 53 28 . . . Shots 7 | . 1 2 1 . . 2 1 . . . Rammed 2 | . . . 1 . . . 1 . . . Targets Rammed 3 | . . . 2 . . . 1 . . . Kicked 1 | . . . 1 . . . . . . . Crushed . | . . . . . . . . . . . Highest Temperature 362 | . 249 362 304 27 . . 354 . 350 . Average Temperature 91 | . 71 135 71 10 . . 117 . 191 . Received Heat Transfer 1320 | . 210 207 678 18 . . 126 18 63 . Effects 3 | . . . 1 . . . 2 . . . Energy Bleed 3 | . . . 1 . . . 2 . . . Siege Activations . | . . . . . . . . . . . Robots Corrupted . | . . . . . . . . . . . Combat Hostiles . | . . . . . . . . . . . Parts Fried . | . . . . . . . . . . . Impact Corruptions . | . . . . . . . . . . . Robots Melted . | . . . . . . . . . . . Combat Hostiles . | . . . . . . . . . . . Parts Melted 4 | . . . 3 . . . . . 1 . Heat Transferred 3545 | . 493 185 1562 185 . . 480 . 640 . Parts Sabotaged . | . . . . . . . . . . . Parts Stolen . | . . . . . . . . . . . Parts Stripped . | . . . . . . . . . . . Power Chain Reactions . | . . . . . . . . . . . Missiles Intercepted . | . . . . . . . . . . . Alert | -11 -10 -10 -9 -9 -9 -8 -8 -7 -7 -7 ------- Run | Scr Mat Min Mat Min Exi Min Mat Fac Low Low Peak Influence 343 | 5 241 128 343 223 . 226 253 119 . . Average Influence 126 | . 115 53 163 180 . 163 116 77 . . Maximum Alert Level 1 | . 1 . 1 1 . 1 1 . . . Low Security (%) 77 | 100 77 100 69 60 . 53 80 100 . . Level 1 22 | . 22 . 30 39 . 46 19 . . . Level 2 . | . . . . . . . . . . . Level 3 . | . . . . . . . . . . . Level 4 . | . . . . . . . . . . . Level 5 . | . . . . . . . . . . . High Security . | . . . . . . . . . . . Max Security . | . . . . . . . . . . . Squads Dispatched 7 | . 3 . 3 1 . . . . . . Investigation 1 | . . . . 1 . . . . . . Extermination . | . . . . . . . . . . . Reinforcement 6 | . 3 . 3 . . . . . . . Assault . | . . . . . . . . . . . Garrison . | . . . . . . . . . . . Intercept . | . . . . . . . . . . . Construction Impeded . | . . . . . . . . . . . Haulers Reinforced . | . . . . . . . . . . . Stealth | -11 -10 -10 -9 -9 -9 -8 -8 -7 -7 -7 --------- Run | Scr Mat Min Mat Min Exi Min Mat Fac Low Low Distress Signals 8 | . 4 . 4 . . . . . . . Communications Jammed . | . . . . . . . . . . . Distress Signals . | . . . . . . . . . . . Times Spotted 177 | . 44 5 72 7 . 8 16 3 21 1 Peak Tracking Total 12 | . 4 2 6 3 . 4 4 2 12 1 Tactical Retreats 29 | . 3 . 12 . . . 7 1 6 . Traps | -11 -10 -10 -9 -9 -9 -8 -8 -7 -7 -7 ------- Run | Scr Mat Min Mat Min Exi Min Mat Fac Low Low Traps Triggered 2 | . 2 . . . . . . . . . Indirectly . | . . . . . . . . . . . Trap Hack Attempts . | . . . . . . . . . . . Triggered . | . . . . . . . . . . . Disarmed . | . . . . . . . . . . . Reprogrammed . | . . . . . . . . . . . Reused . | . . . . . . . . . . . Traps Extracted . | . . . . . . . . . . . Installed . | . . . . . . . . . . . Triggered 2 | . . . . 2 . . . . . . Machines | -11 -10 -10 -9 -9 -9 -8 -8 -7 -7 -7 ---------- Run | Scr Mat Min Mat Min Exi Min Mat Fac Low Low Machines Disabled 6 | . . . 4 1 . . 1 . . . Max in Single Turn 3 | . . . 3 1 . . 1 . . . Machines Sabotaged . | . . . . . . . . . . . Garrisons Compromised . | . . . . . . . . . . . Overloaded Fab Kills . | . . . . . . . . . . . Fab Network Shutdowns . | . . . . . . . . . . . Hacking | -11 -10 -10 -9 -9 -9 -8 -8 -7 -7 -7 --------- Run | Scr Mat Min Mat Min Exi Min Mat Fac Low Low Machines Accessed 17 | . 5 . 7 . 1 . 3 1 . . Terminals 15 | . 5 . 6 . . . 3 1 . . Fabricators . | . . . . . . . . . . . Repair Stations . | . . . . . . . . . . . Recycling Units . | . . . . . . . . . . . Scanalyzers 1 | . . . 1 . . . . . . . Garrison Access . | . . . . . . . . . . . Total Hacks 45 | . 15 . 20 . 1 . 7 2 . . Successful 27 | . 9 . 13 . 1 . 3 1 . . Failed 18 | . 6 . 7 . . . 4 1 . . Catastrophic 2 | . 1 . 1 . . . . . . . Database Lockouts . | . . . . . . . . . . . Manual 44 | . 14 . 19 . 2 . 7 2 . . Terminals 42 | . 15 . 18 . . . 7 2 . . Fabricators . | . . . . . . . . . . . Repair Stations . | . . . . . . . . . . . Recycling Units . | . . . . . . . . . . . Scanalyzers 2 | . . . 2 . . . . . . . Garrison Access . | . . . . . . . . . . . Terminal Hacks 7 | . 2 . 3 . 1 . 1 . . . Part Schematic 3 | . 1 . 1 . . . 1 . . . Branch Access Points 1 | . . . 1 . . . . . . . Emergency Access Points 1 | . . . 1 . . . . . . . Terminal Index 1 | . 1 . . . . . . . . . EX-Prototype ID Bank 1 | . . . . . 1 . . . . . Fabricator Hacks . | . . . . . . . . . . . Repair Station Hacks . | . . . . . . . . . . . Recycling Unit Hacks . | . . . . . . . . . . . Scanalyzer 2 | . . . 2 . . . . . . . Insert Component 1 | . . . 1 . . . . . . . Analyze 1 | . . . 1 . . . . . . . Garrison Access Hacks . | . . . . . . . . . . . Unauthorized Hacks 18 | . 7 . 8 . . . 2 1 . . Terminals 18 | . 7 . 8 . . . 2 1 . . Track 1 | . 1 . . . . . . . . . Assimilate 1 | . . . 1 . . . . . . . Botnet 14 | . 5 . 6 . . . 2 1 . . Operators 2 | . 1 . 1 . . . . . . . Fabricators . | . . . . . . . . . . . Repair Stations . | . . . . . . . . . . . Recycling Units . | . . . . . . . . . . . Scanalyzers . | . . . . . . . . . . . Garrison Access . | . . . . . . . . . . . Data Cores Recovered . | . . . . . . . . . . . Used . | . . . . . . . . . . . Hacking Detections 13 | . 4 . 5 . . . 3 1 . . Full Trace Events 1 | . 1 . . . . . . . . . Feedback Events . | . . . . . . . . . . . Feedback Blocked . | . . . . . . . . . . . Robot Schematics Acquired . | . . . . . . . . . . . Robots Built . | . . . . . . . . . . . Matter . | . . . . . . . . . . . Time . | . . . . . . . . . . . Total Robot Build Rating . | . . . . . . . . . . . Part Schematics Acquired 4 | . 1 . 2 . . . 1 . . . Parts Built . | . . . . . . . . . . . Matter . | . . . . . . . . . . . Time . | . . . . . . . . . . . Total Part Build Rating . | . . . . . . . . . . . Parts Repaired . | . . . . . . . . . . . Time . | . . . . . . . . . . . Parts Recycled . | . . . . . . . . . . . Recycled Matter . | . . . . . . . . . . . Retrieved Matter . | . . . . . . . . . . . Retrieved Components . | . . . . . . . . . . . Parts Scanalyzed 1 | . . . 1 . . . . . . . Part Schematics Acquired 1 | . . . 1 . . . . . . . Parts Damaged . | . . . . . . . . . . . Bothacking | -11 -10 -10 -9 -9 -9 -8 -8 -7 -7 -7 ------------ Run | Scr Mat Min Mat Min Exi Min Mat Fac Low Low Used RIF Installer . | . . . . . . . . . . . Robots Hacked . | . . . . . . . . . . . Non-combat . | . . . . . . . . . . . Combat . | . . . . . . . . . . . Robot Hacks Applied . | . . . . . . . . . . . Relay Couplers Released . | . . . . . . . . . . . Robots Rewired . | . . . . . . . . . . . Allies Hacked . | . . . . . . . . . . . Hacks Repelled . | . . . . . . . . . . . Allies | -11 -10 -10 -9 -9 -9 -8 -8 -7 -7 -7 -------- Run | Scr Mat Min Mat Min Exi Min Mat Fac Low Low Total Allies 2 | . . . 1 . . . . . 1 . Largest Group 1 | . . . 1 . . . . . 1 . Highest-Rated Group 125 | . . . 10 . . . . . 125 . Highest-Rated Ally 125 | . . . 10 . . . . . 125 . Total Orders . | . . . . . . . . . . . Ally Attacks . | . . . . . . . . . . . Total Damage . | . . . . . . . . . . . Kills . | . . . . . . . . . . . Allies Corrupted . | . . . . . . . . . . . Allies Melted . | . . . . . . . . . . . Intel | -11 -10 -10 -9 -9 -9 -8 -8 -7 -7 -7 ------- Run | Scr Mat Min Mat Min Exi Min Mat Fac Low Low Robot Analysis Total . | . . . . . . . . . . . Derelict Logs Recovered 4 | . . 2 . . . . . . 2 . Drone Launches . | . . . . . . . . . . . Drone Recoveries . | . . . . . . . . . . . Exploration | -11 -10 -10 -9 -9 -9 -8 -8 -7 -7 -7 ------------- Run | Scr Mat Min Mat Min Exi Min Mat Fac Low Low Turns Passed 6983 | 137 1640 766 2216 273 407 229 915 160 215 25 Spaces Moved 5928 | 93 1158 580 1538 197 338 161 904 406 526 27 Core 8 | 8 . . . . . . . . . . Treads . | . . . . . . . . . . . Legs 4455 | 85 1158 580 1538 197 338 161 398 . . . Wheels . | . . . . . . . . . . . Hover . | . . . . . . . . . . . Flight 1465 | . . . . . . . 506 406 526 27 Fastest Speed 29 | 50 120 120 120 120 120 120 29 29 29 29 Average Speed 99 | 113 120 120 120 121 120 125 81 29 29 29 Slowest Speed 595 | 120 120 120 150 150 120 150 595 29 105 29 Overloaded Moves . | . . . . . . . . . . . Propulsion Burnouts . | . . . . . . . . . . . Robots Hopped 4 | . . . . . . . 1 . 3 . Cave-ins Triggered . | . . . . . . . . . . . Exploration Rate (%) 48 | 6 88 87 85 38 61 32 46 8 69 10 Regions Visited 10 Branch Regions 6 Pre-discovered Areas 1 | . . 1 . . . . . . . . Known Exits Taken 4 | . . . 1 . . . 1 1 1 . Unknown Exits Taken 6 | 1 1 1 . 1 1 1 . . . . Scrap Searched 4 | . . 2 . 1 . . . . 1 . Spaces Dug 9 | . . . . . . . . 9 . . Terrain Destroyed 212 | . 22 16 35 11 . 79 40 9 . . Melee 9 | . . . . . . . . 9 . . Projectile . | . . . . . . . . . . . AOE 203 | . 22 16 35 11 . 79 40 . . . Actions | -11 -10 -10 -9 -9 -9 -8 -8 -7 -7 -7 --------- Run | Scr Mat Min Mat Min Exi Min Mat Fac Low Low Total 6597 | 115 1297 615 1751 216 340 174 1038 433 573 45 Wait 175 | . 30 9 24 . 1 . 43 17 36 15 Move 5910 | 92 1157 579 1537 196 337 160 901 405 519 27 Hop 4 | . . . . . . . 1 . 3 . Pick Up 103 | 12 16 4 40 5 1 1 22 1 1 . Fast Attach 10 | . 5 . 3 . . . 2 . . . Attach 48 | 6 2 3 17 1 . 2 10 . 4 3 Detach 1 | . . . . . . . . . 1 . Swap 36 | . 7 1 14 2 . 6 4 1 1 . Drop 62 | . 17 1 22 4 1 . 17 . . . Fire 225 | 5 63 18 92 8 . 5 26 . 8 . Melee 20 | . . . . . . . 11 9 . . Ram . | . . . . . . . . . . . Kick 3 | . . . 2 . . . 1 . . . Crush . | . . . . . . . . . . . Escape Stasis . | . . . . . . . . . . . Rewire . | . . . . . . . . . . . Trap . | . . . . . . . . . . . Miscellaneous . | . . . . . . . . . . . Route ------- -11/Scrapyard -10/Materials (discovered 4 exits: *Mat x3 / [*Min]) -10/Mines -9/Materials (discovered 4 exits: *Mat x2 / *Min x2) -9/Mines (discovered 3 exits: *Mat / *Exi / [Zio]) -9/Exiles -8/Mines -8/Materials -7/Factory (discovered 2 exits: [*Fac] / *Low) -7/Lower Caves -7/Lower Caves (discovered 1 exit: [*Fac]) History --------- Turn | Location | Event 6 | -11/Scrapyard | Discovered new exit (range 15) 138 | -11/Scrapyard | Entered Materials 310 | -10/Materials | Build established: Mutant 388 | -10/Materials | Discovered new exit (range 12) 562 | -10/Materials | Discovered new exit (range 3) 646 | -10/Materials | Discovered new exit (range 7) 1333 | -10/Materials | Discovered new exit (range 4) 1778 | -10/Materials | Entered Mines 1784 | -10/Mines | Met a Derelict bent on vengeance 1821 | -10/Mines | Build established: Scavenger-Mutant 2006 | -10/Mines | Core integrity fell below 50% 2155 | -10/Mines | Lost 3 parts (1n2w) 2320 | -10/Mines | Found a damaged Exp. Sensor Array with a note attached 2379 | -10/Mines | Discovered new exit (range 9) 2544 | -10/Mines | Entered Materials 2544 | -9/Materials | Evolved 2 slots: Propulsion x1, Utility x1 2545 | -9/Materials | Identified exit to Mines 2683 | -9/Materials | Lost 3 parts (1p2w) 2875 | -9/Materials | Discovered new exit (range 8) 2986 | -9/Materials | Lost 3 parts (1n2w) 3289 | -9/Materials | Core integrity fell below 50% 3355 | -9/Materials | Discovered new exit (range 8) 3922 | -9/Materials | Build established: Mutant 4760 | -9/Materials | Entered Mines 4784 | -9/Mines | Received a Rocket Launcher from a helpful Derelict 4811 | -9/Mines | A Derelict revealed a hidden shortcut to a safe place 4831 | -9/Mines | Met a Derelict shopkeep closing up shop 4913 | -9/Mines | Core integrity fell below 20% 4998 | -9/Mines | Discovered new exit (range 7) 5023 | -9/Mines | Deemed a non-threat by the Exiles lab entrance 5023 | -9/Mines | Discovered new exit (range 6) 5033 | -9/Mines | Entered Exiles 5078 | -9/Exiles | Met 8R-AWN 5101 | -9/Exiles | Met EX-HEX 5152 | -9/Exiles | Met EX-BIN 5240 | -9/Exiles | Aligned with FarCom system 5241 | -9/Exiles | Given EX-Vault access code 5277 | -9/Exiles | Opened EX-Vault 5290 | -9/Exiles | Found Gui. Plasma Cannon 5319 | -9/Exiles | Warned to stay clear of 0b10 Research branches 5329 | -9/Exiles | Exiles lab attacked by MAIN.C 5421 | -9/Exiles | Discovered new exit (range 12) 5440 | -9/Exiles | Left Exiles lab with Gui. Plasma Cannon 5440 | -9/Exiles | Entered Mines 5658 | -8/Mines | Discovered new exit (range 7) 5669 | -8/Mines | Entered Materials 5669 | -8/Materials | Evolved 2 slots: Power x1, Utility x1 5970 | -8/Materials | Build established: Hacker-Mutant 6559 | -8/Materials | Discovered new exit (range 7) 6584 | -8/Materials | Identified exit to Factory 6584 | -8/Materials | Entered Factory 6584 | -7/Factory | Evolved 2 slots: Utility x2 6602 | -7/Factory | Discovered new exit (range 16) 6632 | -7/Factory | Build established: Hacker-Sprinter 6649 | -7/Factory | Discovered new exit (range 13) 6743 | -7/Factory | Identified exit to Lower Caves 6744 | -7/Factory | Entered Lower Caves 6747 | -7/Lower Caves | Attracted the attention of an 0b10 checkpoint 6821 | -7/Lower Caves | Encountered a Warlord checkpoint 6836 | -7/Lower Caves | Attracted the attention of an 0b10 outpost 6908 | -7/Lower Caves | Identified exit to Lower Caves 6940 | -7/Lower Caves | Core integrity fell below 50% 6942 | -7/Lower Caves | Spotted B-75 Beast 6951 | -7/Lower Caves | Core integrity fell below 20% 6959 | -7/Lower Caves | Entered another Lower Caves area 6967 | -7/Lower Caves | Discovered new exit (range 8) 6974 | -7/Lower Caves | Lost 6 parts (1p3n1u1w) 6984 | -7/Lower Caves | Destroyed by H-55 Commando with Assault Rifle Last Messages --------------- 06866_ Found Particle Gun. 06866_ Found Flak Cannon. 06866_ Found Imp. Light Armor Plating. 06868_ Acquired Imp. Light Armor Plating. 06908_ Lgt. Nuclear Core destroyed. 06908_ Acquired derelict log, extracted data. Loading 1 Lower Caves entrance... 06927_ System Shield destroyed. 06929_ Cld. VTOL Module destroyed. 06933_ Enh. Autogun destroyed. 06943_ Imp. VTOL Module destroyed. A strange signal echoes through the caves. 06953_ Acquired 20 matter. 06957_ Acquired derelict log, extracted data. Data stored: Upper Caves entrances (x1). LOCATION=LOWER CAVES GOAL=ESCAPE 06960_ 81-T7A(k) breaks down the debris. 06967_ EXIT=FOUND 06975_ Slug penetrates Wall. Map ----- +----------------------------------------------------+ | ????????????????????????????????????????????? | | ????????????????????????????????????????????? | | ????????????????????????????????????????????? | | ????????????????????????????????????????????? | | ????????????????????????????????????????????? | | ????????????????????????????????????????????? | | ????????????????????????????????????????????? | | ????????????????????????????????????????????? | | ????????????????????????????????????????????? | | ????????????????????????????????????????????? | | ????????????????????????????????????????????? | | ????????????????????????????????????????????? | | ????????????????????????????????????????????? | | ????????????????????????????????????????????? | | ????????????????????????????????????????????? | | ??????????####????#???#####?????????????????? | | ???????#### ???? #### ##????????????????? | | ?????? #???? #????????????????? | | ?????? ##???? #????????????????? | | ?????? ##???? #????????????????? | | ??????? ##??? #????????????????? | | ???????? #???? ##???????????????? | | ?????????? #????? < #???????????????? | | ????##?????# #?????#h ????????????????? | | ????# ##?### ####?## #?????????????????? | | ????# ###% ### @#?????????????????? | | ???## ## ##?????????????????? | | ??## ## # #??????????????????? | | ### #??????????????????? | | #??????????????????? | | #####$#??????????????????? | | #??# #??????????????????? | | #? ??????????????????? | | ## ?????????????????? | | ###?## ##????????????????? | | ##??????# ##?????????????????? | | ???????# ### #??????????????????? | | ???????# #??# #??????????????????? | | ???????## ## #??## #?????????????????? | | ????????# ### #???# ?????????????????? | | ????????###?# #??# ????????????????? | | ????????????# ?? ??????????????????? | | ????????????## ? ???????????????????? | | ??????????????## ? ???????????????????? | | ???????????????? ??? ???????????????????? | | ???????????????? ???????????????????????????? | | ????????????????????????????????????????????? | | ????????????????????????????????????????????? | | ????????????????????????????????????????????? | | ????????????????????????????????????????????? | +----------------------------------------------------+ Best States ------------- Heat Dissipation 34 Energy Generation 25 Energy Capacity 265 Matter Stores 300 Matter Capacity 300 Sight Range 16 Terrain Scan Density 10 ECM Strength 1 Armor Coverage 150 Evasion (%) 64 Offensive Hacking 20 Defensive Hacking 10 Item Schematics ----------------- Med. Storage Unit | -10/Materials | Hacked Hacking Suite | -9/Materials | Scanalyzed VTOL Module | -9/Materials | Hacked Imp. Flight Unit | -8/Materials | Hacked Robot Schematics ------------------ None Fabricated ------------ Nothing Alien Tech Used ----------------- None Achievements -------------- None Challenges ------------ None Game ------ Seed GravityPoweredCanceller Manual? 0 Play Time 00:57:47 Cumulative 28.6 hours Start 2020.06.16 @ 20:20:47 End 2020.06.16 @ 21:23:33 Sessions 1 Manual Loads 0 Difficulty Rogue Special Mode None Game No. 65 Rogue 63 Adventurer 2 Explorer 0 Win Type - Total 0 Types 0/0/0/0/0/0/0 Lore% 33 Gallery% 38 Achievement% 29 Wizard Run 0 Options --------- ASCII 0 Keyboard 0 Movement Arrows Keybinds 0 Fullscreen 2 Font 18/SmallcapsGlow Map View 76x50 Tactical HUD 1 Map Filters NONE Filters NONE Steam 1 RUN: e674594a-18a2-4c0b-927f-c4924246c49e